bitfinex/quotes_ETHUSD_20220106
["timestamp","ask_amount","ask_price","bid_price","bid_amount"]
[1641466401254,0.74426,3360.3,3360.0,0.00284211]
[1641466403118,0.74426,3360.3,3359.7,0.00454738]
[1641466403119,0.6698623,3360.3,3359.7,0.00454738]
[1641466403718,0.13864749,3360.3,3359.7,0.00454738]
[1641466404117,0.13864749,3360.3,3359.8,3.36474857]
[1641466404420,0.13864749,3360.3,3359.9,1.77652377]
[1641466404618,7.9,3360.4,3359.9,1.77652377]
[1641466404818,7.9,3360.4,3360.0,0.00284211]
[1641466405618,7.9,3360.4,3360.0,4.11175068]
[1641466406019,7.9,3360.4,3360.1,0.00227369]
[1641466406455,7.9,3360.4,3360.1,3.36702226]
[1641466406855,7.9,3360.4,3360.2,0.00170527]
[1641466407059,0.74423,3360.3,3360.2,0.00170527]
[1641466407958,4.04153,3360.4,3360.3,10.95]
[1641466408156,1.67083,3360.4,3360.3,11.69392]
[1641466408356,1.67083,3360.4,3360.3,12.69505684]
[1641466408559,0.00113685,3360.7,3360.4,6.2]
[1641466408756,0.00113685,3360.7,3360.5,1.66061627]
[1641466408956,0.00113685,3360.7,3360.5,2.66061627]
[1641466409358,0.00113685,3360.7,3360.6,10.39389]
[1641466409560,0.00113685,3360.7,3360.6,11.39389]
[1641466409758,0.00113685,3360.7,3360.6,1.74389]
[1641466410404,0.00113685,3360.7,3360.6,5.10863857]
[1641466411502,0.74388,3362.0,3360.7,7.2]
[1641466411705,0.74388,3362.0,3361.6,1.89493933]
[1641466411903,0.00682108,3361.9,3361.6,2.19493933]
[1641466412304,0.00625266,3361.8,3361.6,2.19493933]
[1641466412703,7.60568424,3361.7,3361.6,2.19493933]
[1641466413708,0.00568424,3361.7,3361.6,0.3]
[1641466413952,0.00568424,3361.7,3361.6,8.25]
[1641466414158,0.00568424,3361.7,3361.6,9.25]
[1641466414355,0.00568424,3361.7,3361.6,4.66371431]
[1641466414757,2.90568424,3361.7,3361.6,6.2901554]
[1641466415168,2.90568424,3361.7,3361.6,6.15105601]
[1641466415354,2.90568424,3361.7,3361.6,3.36371431]
[1641466415959,7.10568424,3361.7,3361.6,3.36371431]
[1641466416156,9.75340727,3361.7,3360.9,1.88333699]
[1641466416357,1.22718053,3360.4,3360.0,1.26821058]
[1641466416556,12.7,3360.3,3359.9,1.06787618]
[1641466416758,5.36680746,3360.1,3359.4,5.73832735]
[1641466416956,0.77463957,3359.8,3358.9,7.94890042]
[1641466417157,5.83029473,3359.7,3358.9,7.94890042]
[1641466417364,2.234036,3359.6,3359.0,3.69155054]
[1641466417607,0.74462,3359.4,3359.0,3.69155054]
[1641466417807,0.428,3359.3,3359.1,0.00795793]
[1641466418007,0.428,3359.3,3359.1,6.17795793]
[1641466418408,5.782,3359.3,3359.2,0.00738951]
[1641466419008,18.482,3359.3,3359.2,0.00738951]
[1641466419912,19.482,3359.3,3359.2,0.00738951]
[1641466420710,19.482,3359.3,3358.7,1.99802533]
[1641466420711,5.782,3359.3,3358.7,1.99802533]
[1641466421115,1.98883676,3359.1,3358.8,0.0096632]
[1641466421355,0.428,3359.0,3358.8,0.0096632]
[1641466421757,0.428,3359.0,3358.3,1.50147532]
[1641466421954,0.428,3359.0,3358.6,0.74446]
[1641466422356,0.428,3359.0,3358.7,0.01023163]
[1641466422559,1.48924,3359.5,3358.8,1.40881871]
[1641466422560,0.428,3359.5,3358.8,1.40881871]
[1641466422757,1.2404,3360.2,3358.9,2.84921202]
[1641466422958,0.428,3360.1,3358.9,2.8583068]
[1641466423659,2.67870946,3360.1,3359.7,1.70429341]
[1641466424059,0.428,3360.1,3359.8,0.00397897]
[1641466425706,3.328,3360.1,3359.8,0.00397897]
[1641466426109,1.49816653,3360.0,3359.8,0.00397897]
[1641466426308,0.428,3359.9,3359.8,0.00397897]
[1641466427310,4.39816653,3360.1,3359.8,0.00397897]
[1641466428309,1.49816653,3360.0,3359.8,0.00397897]
[1641466428962,2.9,3360.1,3359.8,0.00397897]
[1641466429163,2.9,3360.1,3359.8,1.00397897]
[1641466429562,2.9,3360.1,3359.9,0.00341055]
[1641466433503,2.9,3360.1,3359.8,0.00397897]
[1641466435511,2.89629859,3360.1,3359.8,0.00397897]
[1641466436954,1.63760006,3360.0,3359.9,1.58892399]
[1641466437354,1.63760006,3360.0,3359.9,1.59233454]
[1641466437954,1.63760006,3360.0,3359.9,1.89233454]
[1641466441399,1.63760006,3360.0,3359.9,1.59233454]
[1641466441800,11.98760006,3360.0,3359.9,1.59233454]
[1641466442609,1.63760006,3360.0,3359.9,1.59233454]
[1641466443003,1.63760006,3360.0,3359.9,0.00341055]
[1641466443405,1.63760006,3360.0,3359.7,0.00454739]
[1641466443602,2.38195006,3360.0,3359.7,0.00454739]
[1641466444859,2.38195006,3360.0,3359.8,1.59290375]
[1641466445062,6.32239805,3359.9,3359.8,1.59290375]
[1641466445260,4.3,3359.9,3359.8,1.89290375]
[1641466445465,4.3,3359.9,3359.8,0.3]
[1641466445661,7.45207676,3359.9,3359.8,0.3]
[1641466445863,7.45207676,3359.9,3359.5,2.52093016]
[1641466446065,7.45207676,3359.9,3359.5,0.3]
[1641466446265,7.45207676,3359.9,3359.6,0.00511582]
[1641466446866,3.15207676,3359.9,3359.5,0.00568424]
[1641466447066,4.57770428,3360.1,3359.7,1.73507114]
[1641466447467,2.89629859,3360.1,3359.8,0.00397897]
[1641466450705,3.64060859,3360.1,3359.8,0.00397897]
[1641466451366,5.5527451,3360.1,3359.8,0.00397897]
[1641466452956,14.18907,3359.9,3359.0,0.00852636]
[1641466453257,4.60604449,3359.8,3358.1,0.01364217]
[1641466453457,1.98409983,3359.0,3358.6,1.85895688]
[1641466453658,1.98409983,3359.0,3358.1,1.21784953]
[1641466453864,1.98409983,3359.0,3358.7,0.01023163]
[1641466454157,1.98409983,3359.0,3358.3,0.01250532]
[1641466454858,1.98409983,3359.0,3358.6,0.74453]
[1641466455102,0.74457,3358.9,3358.7,0.3]
[1641466455302,1.48907,3359.4,3358.7,0.31023163]
[1641466455505,1.48907,3359.4,3358.8,0.0096632]
[1641466456803,1.79440555,3359.2,3358.8,0.0096632]
[1641466457003,0.74456,3359.1,3358.8,0.0096632]
[1641466457804,0.74456,3359.1,3358.2,1.48893]
[1641466457805,0.74456,3359.1,3358.7,0.01023163]
[1641466458004,0.74456,3359.1,3358.3,0.31250532]
[1641466458205,0.74456,3359.1,3358.4,0.7565069]
[1641466458410,0.74456,3359.1,3358.5,2.06300861]
[1641466458607,0.74456,3359.1,3358.5,2.07437709]
[1641466458860,0.74456,3359.1,3358.6,0.01080005]
[1641466461668,0.74456,3359.1,3358.3,0.01250532]
[1641466462163,0.74456,3359.1,3358.2,0.01307375]
[1641466462368,0.74456,3359.1,3358.7,2.24985187]
[1641466462597,0.74456,3359.1,3358.7,0.3]
[1641466462801,0.74456,3359.1,3358.8,0.0096632]
[1641466463197,0.74456,3359.1,3358.2,0.01307375]
[1641466464201,1.63796008,3359.0,3358.3,1.60270614]
[1641466464403,0.74467,3358.7,3358.3,1.60270614]
[1641466464599,0.74467,3358.7,3358.6,2.07057343]
[1641466465000,0.74467,3358.7,3358.6,0.31080005]
[1641466465203,0.74467,3358.7,3358.6,0.01080005]
[1641466465402,0.74467,3358.7,3358.3,1.60270614]
[1641466465403,11.9,3358.6,3358.3,1.60270614]
[1641466465601,0.428,3358.5,3358.3,1.60270614]
[1641466465900,12.7,3358.3,3357.9,0.04676002]
[1641466466203,13.128,3358.3,3358.0,0.00341054]
[1641466466657,12.7,3358.1,3357.7,1.85165024]
[1641466466861,12.7,3358.1,3357.5,0.6765772]
[1641466466862,0.74496,3357.8,3357.5,0.6765772]
[1641466467259,11.5,3357.6,3357.5,7.72e-05]
[1641466467661,11.5,3357.6,3357.5,0.00291932]
[1641466467861,12.3486,3357.6,3357.5,0.00291932]
[1641466468062,12.3486,3357.6,3357.0,1.85165024]
[1641466468063,0.7451,3357.3,3357.0,1.85165024]
[1641466468261,0.428,3357.2,3357.0,1.26685024]
[1641466468472,0.428,3357.2,3356.5,3.66212044]
[1641466468473,12.7,3357.1,3356.5,3.66212044]
[1641466468662,0.428,3357.0,3356.6,1.87496337]
[1641466468863,0.428,3357.0,3356.6,1.87780549]
[1641466469469,0.74519,3356.8,3356.6,1.87780549]
[1641466469663,0.74519,3356.8,3356.6,0.53680549]
[1641466470114,0.74519,3356.8,3356.6,0.00284212]
[1641466470514,0.74519,3356.8,3356.1,3.66212044]
[1641466470515,0.74519,3356.8,3356.2,0.00511581]
[1641466471119,0.74519,3356.8,3355.9,0.3]
[1641466471315,5.74519,3356.8,3355.9,0.3]
[1641466471516,5.74519,3356.8,3356.0,0.00625266]
[1641466471918,5.74519,3356.8,3356.3,2.24805702]
[1641466472318,5.74519,3356.8,3356.4,0.00397897]
[1641466473117,6.4903621,3356.8,3356.4,0.00397897]
[1641466473951,5.74519,3356.8,3356.4,0.00397897]
[1641466474754,5.0,3356.8,3356.4,0.00397897]
[1641466475151,5.0,3356.8,3356.4,0.74897897]
[1641466475552,5.0,3356.8,3356.5,0.00341054]
[1641466475852,7.9,3356.8,3356.5,0.00341054]
[1641466476454,7.9,3356.8,3356.7,1.36049062]
[1641466476655,7.9,3356.8,3356.5,0.00341054]
[1641466476656,7.9,3356.8,3356.5,0.74837054]
[1641466476956,6.2306,3356.8,3356.7,0.0022737]
[1641466477798,6.2306,3356.8,3356.7,1.20498262]
[1641466478300,0.00113684,3358.2,3356.8,12.7]
[1641466478501,0.00113684,3358.2,3357.6,0.01268331]
[1641466478701,5.169,3358.3,3358.2,14.05630301]
[1641466478902,3.2373,3359.4,3359.0,1.23969701]
[1641466479101,2.2588867,3359.8,3359.0,1.23969701]
[1641466479102,1.5144767,3359.8,3359.0,1.23969701]
[1641466479301,1.5144767,3359.8,3358.3,2.90314839]
[1641466479302,0.01136847,3359.3,3358.3,2.90314839]
[1641466479502,0.428,3359.6,3358.2,0.3]
[1641466479801,0.01270591,3359.3,3358.3,0.00568423]
[1641466480204,1.56053039,3359.5,3358.3,1.00995149]
[1641466480403,1.6311108,3359.0,3358.5,1.99583527]
[1641466480603,1.59349084,3359.5,3358.5,1.99583527]
[1641466480604,0.46307556,3359.1,3358.5,1.99583527]
[1641466480805,1.48946,3358.8,3358.6,0.00397896]
[1641466481205,1.0,3359.9,3358.6,0.00397896]
[1641466481206,0.07118739,3359.5,3358.6,0.00397896]
[1641466481655,0.07118739,3359.5,3359.3,1.9891875]
[1641466481853,12.09459,3359.4,3358.6,0.00397896]
[1641466482253,12.09459,3359.4,3358.3,0.67012]
[1641466482453,12.09459,3359.4,3358.3,0.30568423]
[1641466482656,12.09459,3359.4,3358.4,0.00511581]
[1641466483052,12.09459,3359.4,3359.1,1.83872004]
[1641466483454,12.09459,3359.4,3359.1,2.13872004]
[1641466484856,12.09459,3359.4,3359.1,0.3]
[1641466485098,12.09459,3359.4,3358.4,0.00511581]
[1641466485302,0.7446339,3359.2,3358.4,0.00511581]
[1641466485499,0.7446339,3359.2,3358.3,0.30568423]
[1641466485500,0.74464,3358.8,3358.3,0.30568423]
[1641466485700,0.74464,3358.8,3358.4,0.00511581]
[1641466485899,0.74464,3358.8,3358.7,1.92097213]
[1641466486300,0.74464,3358.8,3358.7,2.22438267]
[1641466487102,0.74464,3358.8,3358.7,1.92438267]
[1641466487300,4.69464,3358.8,3358.7,1.92438267]
[1641466487699,0.74464,3358.8,3358.7,1.92438267]
[1641466487904,2.9,3359.2,3358.7,1.92438267]
[1641466488300,2.9,3359.2,3358.8,0.00284211]
[1641466489554,3.6445,3359.2,3358.8,0.00284211]
[1641466490955,4.3891304,3359.2,3358.8,0.00284211]
[1641466491161,1.48928,3359.0,3358.8,0.00284211]
[1641466491955,4.51910494,3359.0,3358.8,0.00284211]
[1641466493208,10.27545314,3358.9,3358.8,0.00284211]
[1641466493407,2.12545314,3358.9,3358.8,0.00284211]
[1641466494105,5.15527808,3358.9,3358.8,0.00284211]
[1641466496009,2.12545314,3358.9,3358.8,0.00284211]
[1641466499061,16.26473314,3358.9,3358.8,0.00284211]
[1641466499264,17.26473314,3358.9,3358.0,0.0073895]
[1641466499561,17.26473314,3358.9,3357.4,1.84059805]
[1641466499562,0.74483,3357.8,3357.6,0.0096632]
[1641466499764,0.74483,3357.8,3357.7,2.22354958]
[1641466500201,5.99483,3357.8,3357.7,2.23264435]
[1641466500897,5.99483,3357.8,3357.7,2.17264435]
[1641466501103,0.74483,3357.8,3357.7,2.17264435]
[1641466501502,0.74483,3357.8,3357.7,2.47264435]
[1641466502100,2.87028314,3357.8,3357.7,2.47264435]
[1641466502301,2.12545314,3357.8,3357.7,2.47264435]
[1641466502499,2.12545314,3357.8,3357.7,3.47264435]
[1641466502898,7.12545314,3357.8,3357.7,3.47264435]
[1641466503701,5.0,3357.8,3357.7,3.47264435]
[1641466503965,5.0,3357.8,3357.7,3.64819764]
[1641466504168,5.0,3357.8,3357.7,4.64819764]
[1641466507373,7.9,3357.8,3357.7,4.64819764]
[1641466508004,7.9,3357.8,3357.7,8.54819764]
[1641466509008,7.9,3357.8,3357.7,4.64819764]
[1641466509804,7.9,3357.8,3357.7,3.64819764]
[1641466510505,7.9,3357.8,3357.7,4.64819764]
[1641466511360,7.9,3357.8,3357.7,5.82913568]
[1641466511573,1.5058884,3358.9,3357.8,12.65]
[1641466511761,1.5058884,3358.9,3358.8,10.93350753]
[1641466511960,1.5058884,3358.9,3358.8,13.73162996]
[1641466512159,1.5058884,3358.9,3358.8,15.48881641]
[1641466512358,1.5058884,3358.9,3358.8,3.01434964]
[1641466512562,1.5058884,3358.9,3358.8,3.86542498]
[1641466512757,1.83343917,3359.3,3358.8,4.86542498]
[1641466512959,1.83343917,3359.3,3359.0,0.7442582]
[1641466513360,1.83343917,3359.3,3359.1,0.00113684]
[1641466513959,1.5058884,3359.6,3359.4,1.71664251]
[1641466513960,1.83343917,3359.6,3359.4,1.71664251]
[1641466514358,0.00113685,3359.5,3359.4,2.01664251]
[1641466515210,1.83457602,3359.5,3359.4,2.01664251]
[1641466516412,4.73457602,3359.5,3359.4,2.01664251]
[1641466517514,4.73457602,3359.5,3359.4,0.3]
[1641466517713,1.83457602,3359.5,3359.4,0.3]
[1641466518514,0.0402,3359.7,3359.4,7.25570998]
[1641466518714,4.25700547,3360.4,3359.4,7.25570998]
[1641466518715,4.25700547,3360.4,3359.7,12.45]
[1641466518957,4.25700547,3360.4,3360.3,3.19296296]
[1641466519160,4.25700547,3360.4,3360.3,4.19296296]
[1641466519361,4.25700547,3360.4,3360.3,1.95926294]
[1641466519557,1.22718053,3360.4,3360.3,2.25926294]
[1641466520461,1.22718053,3360.4,3360.3,3.55778462]
[1641466520661,1.22718053,3360.4,3360.3,2.25926294]
[1641466523105,1.15276545,3360.4,3360.3,2.25926294]
[1641466529966,1.15276545,3360.4,3360.3,5.05371185]
[1641466530207,1.15276545,3360.4,3360.3,6.05371185]
[1641466530613,1.15276545,3360.4,3360.3,3.25926294]
[1641466530804,1.15276545,3360.4,3360.3,4.88915624]
[1641466531009,1.15276545,3360.4,3360.3,3.25926294]
[1641466531206,1.15276545,3360.4,3360.3,2.25926294]
[1641466533007,1.15276545,3360.4,3360.2,0.3]
[1641466533307,0.00454739,3360.3,3360.2,0.3]
[1641466533508,0.00454739,3360.3,3360.1,1.48823]
[1641466533707,0.00454739,3360.3,3359.6,0.04706762]
[1641466533964,0.74433,3360.1,3359.6,0.04706762]
[1641466534365,0.00284212,3360.0,3359.6,0.04706762]
[1641466534763,0.00227369,3359.9,3359.6,0.04706762]
[1641466534969,0.7444,3359.8,3359.6,0.04706762]
[1641466535163,0.74610527,3359.8,3359.6,0.04706762]
[1641466535364,2.16824515,3359.6,3359.0,1.33992]
[1641466535764,2.16824515,3359.6,3359.1,0.00227369]
[1641466536166,2.91268515,3359.6,3359.1,2.05396687]
[1641466536566,0.00170527,3359.8,3359.2,0.00170527]
[1641466536966,0.00113685,3359.7,3359.3,0.74434]
[1641466537168,0.00113685,3359.7,3359.4,1.63973]
[1641466537372,0.7443,3360.2,3359.4,1.63973]
[1641466537373,0.00284212,3360.0,3359.4,1.63973]
[1641466537607,1.89718642,3360.0,3359.4,1.63973]
[1641466537807,0.00227369,3359.9,3359.4,1.63973]
[1641466538110,0.00170527,3359.8,3359.6,0.74432]
[1641466538305,0.00170527,3359.8,3359.7,0.3]
[1641466538507,0.5,3359.9,3359.7,0.3]
[1641466538907,0.50227369,3359.9,3359.7,0.96992]
[1641466539108,0.50227369,3359.9,3359.7,0.3]
[1641466539510,0.50227369,3359.9,3359.5,0.3]
[1641466539910,0.50227369,3359.9,3359.3,0.3]
[1641466540111,0.50227369,3359.9,3359.2,0.00170527]
[1641466540509,0.50227369,3359.9,3359.3,0.3]
[1641466540910,0.50227369,3359.9,3359.3,1.04439]
[1641466541108,1.76637512,3359.4,3359.3,1.04439]
[1641466541556,1.76637512,3359.4,3359.3,1.04552685]
[1641466542356,0.74441,3359.8,3359.3,1.04552685]
[1641466542555,0.74441,3359.8,3359.5,0.66996]
[1641466542763,0.00113685,3359.7,3359.5,0.66996]
[1641466543359,1.9004031,3359.7,3359.5,0.66996]
[1641466548606,1.9004031,3359.7,3359.6,2.0438316]
[1641466549053,1.9004031,3359.7,3359.6,2.3438316]
[1641466549453,0.00113685,3359.7,3359.6,2.3438316]
[1641466550458,0.00113685,3359.7,3359.6,2.0438316]
[1641466551655,0.00113685,3359.7,3359.3,0.00113685]
[1641466552057,0.00113685,3359.7,3359.4,0.3]
[1641466552257,5.00113685,3359.7,3359.4,0.3]
[1641466553305,5.00113685,3359.7,3359.3,0.00113685]
[1641466553710,5.00113685,3359.7,3359.5,2.0438316]
[1641466554107,5.77776924,3359.7,3359.5,2.0438316]
[1641466554508,7.79443,3359.6,3359.3,0.00113685]
[1641466554907,7.79443,3359.6,3358.9,0.00341054]
[1641466555115,0.74446,3359.3,3358.9,0.00341054]
[1641466555810,2.09497186,3359.2,3358.9,0.00341054]
[1641466556015,2.09497186,3359.2,3358.6,1.30511581]
[1641466556215,2.09497186,3359.2,3359.0,2.0438316]
[1641466556664,2.09497186,3359.2,3359.1,0.00227369]
[1641466557460,2.09497186,3359.2,3358.8,0.00397896]
[1641466558663,2.09497186,3359.2,3358.9,2.0438316]
[1641466558960,2.09497186,3359.2,3359.0,0.00284212]
[1641466559359,2.39497186,3359.2,3359.0,0.00284212]
[1641466559561,3.13948186,3359.2,3359.0,0.00284212]
[1641466559762,2.83948186,3359.2,3359.0,0.00284212]
[1641466560415,6.33948186,3359.2,3358.8,0.00397896]
[1641466560611,0.74464,3359.0,3358.8,0.00397896]
[1641466561317,0.74464,3359.0,3358.1,2.0438316]
[1641466561318,0.74464,3359.0,3358.2,0.00738951]
[1641466561512,3.5,3359.0,3358.2,0.00738951]
[1641466561911,2.18419484,3358.3,3358.2,0.00738951]
[1641466562815,2.18419484,3358.3,3357.5,0.01136847]
[1641466563416,5.68419484,3358.3,3357.5,0.01136847]
[1641466563617,1.8096579,3357.7,3357.5,0.01136847]
[1641466563869,1.8096579,3357.7,3357.2,0.31307374]
[1641466564057,1.8096579,3357.7,3357.4,0.01193689]
[1641466564257,1.8096579,3357.7,3357.3,0.01250532]
[1641466565060,1.8096579,3357.7,3357.0,0.01421059]
[1641466565061,2.5545179,3357.7,3357.0,0.01421059]
[1641466566061,2.5545179,3357.7,3356.7,0.01591586]
[1641466566262,2.05173005,3356.8,3356.6,0.01648428]
[1641466567061,2.05173005,3356.8,3356.6,1.01648428]
[1641466567613,2.05173005,3356.8,3356.7,8.31591586]
[1641466567813,2.05173005,3356.8,3356.7,0.01591586]
[1641466568018,2.55173005,3356.8,3356.7,1.01591586]
[1641466568215,2.55173005,3356.8,3356.7,4.86591586]
[1641466568417,2.55173005,3356.8,3356.7,5.86591586]
[1641466568615,2.55173005,3356.8,3356.7,1.01591586]
[1641466569215,2.55173005,3356.8,3356.7,0.01591586]
[1641466570015,0.5,3356.8,3356.7,0.01591586]
[1641466571019,0.5,3356.8,3356.7,1.84780504]
[1641466571216,0.5,3356.8,3356.7,0.01591586]
[1641466571462,0.5,3356.8,3356.7,1.01591586]
[1641466571663,0.5,3356.8,3356.7,0.01591586]
[1641466572866,0.5,3356.8,3356.7,4.9912176]
[1641466573065,0.5,3356.8,3356.7,5.9912176]
[1641466573264,0.5,3356.8,3356.7,7.47019498]
[1641466574465,5.16219844,3358.1,3356.8,12.65]
[1641466574666,3.5,3358.0,3357.2,1.30395581]
[1641466574867,1.51479844,3358.1,3357.8,1.02072044]
[1641466575124,1.51479844,3358.1,3357.9,2.66113885]
[1641466575314,1.51479844,3358.1,3357.9,2.96632919]
[1641466575514,1.51479844,3358.1,3358.0,18.09467419]
[1641466576014,1.51479844,3358.7,3358.0,18.09467419]
[1641466576214,1.51479844,3358.7,3358.2,0.74442]
[1641466576515,1.51479844,3358.7,3358.3,2.67340245]
[1641466576916,1.51479844,3358.7,3358.4,1.00625266]
[1641466577315,1.51479844,3358.7,3358.5,0.00568424]
[1641466577516,1.51479844,3358.7,3358.5,1.49445294]
[1641466577517,0.92877213,3358.7,3358.5,1.49445294]
[1641466577814,0.92877213,3358.7,3358.6,12.65511581]
[1641466578015,1.42877213,3358.7,3358.6,1.95760737]
[1641466578216,1.42877213,3358.7,3358.6,6.65760737]
[1641466578416,1.42877213,3358.7,3358.4,2.12728949]
[1641466578616,1.42877213,3358.7,3358.5,2.21035861]
[1641466579074,0.5,3358.7,3358.5,4.44343731]
[1641466579275,0.5,3358.7,3358.6,2.43231461]
[1641466579776,1.51479844,3359.3,3358.6,2.43231461]
[1641466579980,0.78800071,3358.7,3358.6,2.43231461]
[1641466581576,0.00341054,3359.2,3358.6,5.09688031]
[1641466581800,0.00341054,3359.2,3358.6,2.43231461]
[1641466581976,0.00284212,3359.1,3358.6,5.07351087]
[1641466582178,0.00284212,3359.1,3358.6,2.43231461]
[1641466582376,0.00227369,3359.0,3358.7,1.0]
[1641466582618,0.00227369,3359.0,3358.8,0.74431]
[1641466582817,0.00170527,3358.9,3358.8,1.04431]
[1641466583217,0.78800071,3359.1,3358.9,10.9]
[1641466583417,0.78800071,3359.1,3358.9,11.328]
[1641466583619,0.78800071,3359.1,3359.0,13.65]
[1641466583816,0.78800071,3359.1,3359.0,1.728]
[1641466584018,0.78913756,3359.1,3359.0,1.728]
[1641466584317,0.78913756,3359.1,3359.0,0.728]
[1641466584518,0.00113685,3359.1,3359.0,4.60445461]
[1641466584721,0.00113685,3359.1,3359.0,4.90445461]
[1641466585320,0.00113685,3359.1,3359.0,4.60445461]
[1641466585517,0.00113685,3359.1,3359.0,4.90445461]
[1641466585917,0.00113685,3359.1,3359.0,4.60445461]
[1641466586118,0.00113685,3359.1,3359.0,8.30445461]
[1641466586555,0.00113685,3359.1,3359.0,8.60445461]
[1641466587456,0.00113685,3359.1,3359.0,4.90445461]
[1641466588059,0.00113685,3359.1,3359.0,10.10445461]
[1641466589360,0.00113685,3359.1,3359.0,4.90445461]
[1641466590224,0.00113685,3359.1,3359.0,11.49271172]
[1641466591425,0.00113685,3359.1,3359.0,7.04271172]
[1641466591927,0.00113685,3359.1,3359.0,6.74271172]
[1641466592724,0.00113685,3359.1,3359.0,7.04271172]
[1641466592925,0.00113685,3359.1,3359.0,5.13065461]
[1641466597610,0.00113685,3359.1,3359.0,7.04271172]
[1641466597809,0.00113685,3359.1,3359.0,5.13065461]
[1641466601015,0.00113685,3359.1,3359.0,9.38065461]
[1641466601660,0.00113685,3359.1,3359.0,9.15445461]
[1641466602461,0.00113685,3359.1,3359.0,4.90445461]
[1641466602863,0.00113685,3359.1,3359.0,8.85445461]
[1641466603060,0.00113685,3359.1,3359.0,4.90445461]
[1641466605217,0.00113685,3359.1,3358.9,4.03734557]
[1641466605420,0.00113685,3359.1,3359.0,6.228]
[1641466606414,0.00113685,3359.1,3359.0,6.97214]
[1641466607214,0.00113685,3359.1,3359.0,2.47214]
[1641466608859,0.00113685,3359.1,3359.0,6.67214]
[1641466610961,0.00113685,3359.1,3359.0,2.47214]
[1641466611161,0.00113685,3359.1,3358.8,1.90048076]
[1641466611560,0.74562685,3359.1,3358.8,1.90048076]
[1641466611759,0.69562685,3359.1,3358.8,1.90048076]
[1641466611958,0.69562685,3359.1,3358.5,2.21035861]
[1641466612159,0.00113685,3359.1,3358.5,2.21035861]
[1641466612361,0.00113685,3359.1,3358.6,0.00170527]
[1641466612822,0.74448,3358.9,3358.5,0.0022737]
[1641466613422,0.00113685,3359.1,3358.5,0.0022737]
[1641466613623,0.00113685,3359.1,3358.6,1.99024054]
[1641466614021,1.48898,3359.2,3358.7,0.00113685]
[1641466614826,0.74444,3359.0,3358.7,0.00113685]
[1641466617063,0.74444,3359.0,3358.4,0.00284212]
[1641466617064,1.78065532,3358.6,3358.4,0.00284212]
[1641466618066,1.78065532,3358.6,3358.3,1.00341054]
[1641466618265,1.78065532,3358.6,3358.4,0.00284212]
[1641466618666,0.74444,3359.0,3358.4,0.00284212]
[1641466618867,0.74444,3359.0,3358.3,0.00341054]
[1641466619066,5.88129844,3359.3,3358.3,2.29043313]
[1641466619266,4.72689844,3359.3,3358.3,2.29043313]
[1641466619466,0.00170527,3359.2,3358.6,0.74435]
[1641466619667,1.60173334,3359.0,3358.6,0.74435]
[1641466619867,1.60173334,3359.0,3358.7,0.00113685]
[1641466620313,1.60173334,3359.0,3358.8,0.7443498]
[1641466620514,1.60173334,3359.0,3358.7,0.00113685]
[1641466620714,2.34616334,3359.0,3358.7,0.00113685]
[1641466621615,2.34616334,3359.0,3358.3,2.90048076]
[1641466621616,2.34616334,3359.0,3358.4,0.00284212]
[1641466622218,2.04616334,3359.0,3358.4,0.00284212]
[1641466623017,2.04616334,3359.0,3358.6,0.7444183]
[1641466623417,2.04616334,3359.0,3358.7,0.00113685]
[1641466624269,2.04616334,3359.0,3358.5,0.7444451]
[1641466624472,2.04616334,3359.0,3358.4,0.00284212]
[1641466625271,2.04616334,3359.0,3358.5,0.7444443]
[1641466625674,1.60173334,3359.0,3358.4,0.00284212]
[1641466625871,1.60173334,3359.0,3358.4,0.74724212]
[1641466626276,0.89210545,3358.9,3358.6,2.34408399]
[1641466626572,0.89210545,3358.9,3358.7,0.00113685]
[1641466629912,0.89210545,3358.9,3358.7,2.34522084]
[1641466630912,0.89210545,3358.9,3358.7,0.00113685]
[1641466631385,0.89210545,3358.9,3358.5,0.0022737]
[1641466631769,0.74446,3358.9,3358.5,0.0022737]
[1641466632371,0.74446,3358.9,3358.4,0.00284212]
[1641466632970,1.60173334,3359.0,3358.4,2.34692611]
[1641466633169,1.60173334,3359.0,3358.4,0.00284212]
[1641466633371,1.60173334,3359.0,3358.5,0.0022737]
[1641466633573,1.60173334,3359.0,3358.3,0.00341054]
[1641466633972,1.60173334,3359.0,3358.4,0.7444]
[1641466634373,1.60173334,3359.0,3358.5,0.0022737]
[1641466634776,1.60173334,3359.0,3358.5,2.33835997]
[1641466635407,1.60173334,3359.0,3358.6,0.7443876]
[1641466635811,1.60173334,3359.0,3358.7,0.00113685]
[1641466636211,0.74554685,3359.1,3358.7,0.00113685]
[1641466636212,0.00113685,3359.1,3358.7,2.00874287]
[1641466636411,0.00113685,3359.1,3358.7,4.04482914]
[1641466637009,3.74221942,3359.6,3358.7,4.04482914]
[1641466637410,0.00227369,3359.5,3359.0,0.7443245]
[1641466637910,0.00170527,3359.4,3359.0,0.7443245]
[1641466638309,0.00113684,3359.3,3359.0,0.7443245]
[1641466638511,0.00113684,3359.3,3359.1,2.33608627]
[1641466638712,0.887012,3359.7,3359.1,2.33608627]
[1641466638713,1.6739034,3359.5,3359.1,2.33608627]
[1641466638966,2.4182334,3359.5,3359.1,2.33608627]
[1641466639165,0.00170527,3359.4,3359.1,2.33608627]
[1641466639565,0.00113684,3359.3,3359.1,2.33608627]
[1641466639966,0.74436,3359.3,3359.1,2.33608627]
[1641466640566,6.34448,3359.2,3359.1,2.33608627]
[1641466640766,5.6,3359.2,3359.1,2.33608627]
[1641466641169,0.74436,3359.3,3359.1,2.33608627]
[1641466641469,0.88731475,3359.2,3358.8,0.00170527]
[1641466641668,1.48897,3359.1,3358.8,0.00170527]
[1641466641870,1.63179475,3359.2,3358.5,0.00341055]
[1641466642268,0.74448,3359.2,3358.5,0.00341055]
[1641466642469,1.98399892,3358.9,3358.5,2.07946259]
[1641466642918,2.72847892,3358.9,3358.6,0.00284212]
[1641466643317,2.65408372,3358.9,3358.6,0.74727542]
[1641466643518,1.98399892,3358.9,3358.6,0.74727542]
[1641466643719,1.98399892,3358.9,3358.7,0.0022737]
[1641466644016,0.74444,3359.0,3358.7,0.0022737]
[1641466644217,0.89217482,3358.8,3358.7,2.33835997]
[1641466644421,0.89217482,3358.8,3358.7,3.08278677]
[1641466645619,0.89217482,3358.9,3358.7,0.7467005]
[1641466646018,0.89217482,3358.9,3358.8,0.00170527]
[1641466646220,0.89217482,3358.9,3358.8,2.33779154]
[1641466646459,0.84217482,3358.9,3358.8,2.33779154]
[1641466650324,14.86360369,3358.9,3358.8,2.33779154]